[Event "SVK ECo-C Extraliga 2018-19"]
[Site "Slovakia"]
[Date "2019.03.09"]
[Round "7.6"]
[White "Joba, Arpad"]
[Black "Cech, Pavel"]
[Result "0-1"]
[ECO "C18"]
[WhiteElo "2009"]
[BlackElo "2324"]
[Annotator "NA"]
[PlyCount "70"]
[EventDate "2018.11.10"]
[EventType "team-tourn"]
[EventCountry "SVK"]
[SourceTitle "playchess.com"]
[Source "ChessBase"]
[SourceQuality "1"]
[WhiteTeam "Komarno"]
[BlackTeam "Liptovska"]
[TimeControl "40/5400+30:1800+30"]

1. e4 {[%emt 0:00:00]} e6 {[%emt 0:00:00]} 2. d4 {[%emt 0:00:00]} d5 {[%emt 0:00:00]} 3. Nc3 {[%emt 0:00:00]} Bb4 {[%emt 0:00:11]} 4. e5 {[%emt 0:00:00]} c5 {[%emt 0:02:49]} 5. a3 {[%emt 0:00:00]} Bxc3+ {[%emt 0:00:06]} 6. bxc3 {[%emt 0:00:10]} Ne7 {[%emt 0:00:06]} 7. Qg4 {[%emt 0:00:32]} Qc7 {[%emt 0:00:13]} 8. Qxg7 {[%emt 0:00:08]} Rg8 {[%emt 0:00:04]} 9. Qxh7 {[%emt 0:00:08]} cxd4 {[%emt 0:00:22]} 10. Ne2 {[%emt 0:00:08]} Nbc6 {[%emt 0:00:15]} 11. f4 {[%emt 0:00:07]} Bd7 {[%emt 0:01:03]} 12. Qd3 {[%emt 0:00:38]} dxc3 {[%emt 0:00:17]} 13. Rb1 {[%emt 0:06:50]} d4 {[%emt 0:11:20]} 14. g3 {[%emt 0:18:41]} O-O-O {[%emt 0:15:16]} 15. Bg2 {[%emt 0:02:26]} Nf5 {[%emt 0:03:51]} 16. O-O {[%emt 0:12:00]} Kb8 {[%emt 0:11:49]} 17. Rf2 {[%emt 0:09:09]} Bc8 $11 {[%emt 0:17:35]} 18. Be4 {[%emt 0:06:34]} b6 {[%emt 0:08:03]} 19. Rg2 {[%emt 0:18:51]} Bb7 {[%emt 0:03:00]} 20. g4 {[%emt 0:02:39]} Nh4 {[%emt 0:01:23]} 21. Rg3 {[%emt 0:00:07]} a5 {[%emt 0:02:16]} 22. g5 {[%emt 0:04:16]} Ka7 {[%emt 0:01:13]} 23. Rh3 {[%emt 0:06:09]} Nf5 {[%emt 0:03:03]} 24. Bxf5 {[%emt 0:08:03]} exf5 {[%emt 0:00:06]} 25. Ng3 {[%emt 0:00:44]} Ne7 {[%emt 0:01:52]} 26. Rh6 {[%emt 0:00:39]} Rg6 {[%emt 0:02:19]} 27. Rh7 {[%emt 0:01:26]} Qc6 {[%emt 0:01:53]} 28. Kf2 {[%emt 0:01:06]} Qg2+ {[%emt 0:02:06]} 29. Ke1 {[%emt 0:00:04]} Ba6 {[%emt 0:05:15]} 30. Rb5 {[%emt 0:00:04]} Bxb5 {[%emt 0:00:06]} 31. Qxb5 {[%emt 0:00:05]} Qxc2 {[%emt 0:00:06]} 32. Ne2 {[%emt 0:01:23]} d3 {[%emt 0:00:16]} 33. Nxc3 {[%emt 0:00:41]} Qxc1+ {[%emt 0:02:15]} 34. Nd1 {[%emt 0:00:11]} Qxf4 {[%emt 0:00:32]} 35. Rxf7 {[%emt 0:00:46]} Re6 {[%emt 0:00:11]} 0-1

[Event "SVK ECo-C Extraliga 2018-19"]
[Site "Slovakia"]
[Date "2019.03.09"]
[Round "7.7"]
[White "Meszaros, Michal"]
[Black "Zpevak, Pavel"]
[Result "*"]
[ECO "D23"]
[WhiteElo "2358"]
[BlackElo "2340"]
[Annotator "NA"]
[PlyCount "24"]
[EventDate "2018.11.10"]
[EventType "team-tourn"]
[EventCountry "SVK"]
[SourceTitle "playchess.com"]
[Source "ChessBase"]
[SourceQuality "1"]
[WhiteTeam "Streda"]
[BlackTeam "Dubnica"]
[TimeControl "40/5400+30:1800+30"]

1. d4 {[%emt 0:00:00]} d5 {[%emt 0:00:00]} 2. c4 {[%emt 0:00:03]} dxc4 {[%emt 0:00:00]} 3. Nf3 {[%emt 0:00:16]} Nf6 {[%emt 0:00:01]} 4. g3 {[%emt 0:04:23]} a6 {[%emt 0:01:43]} 5. Bg2 {[%emt 0:01:07]} Nc6 {[%emt 0:04:27]} 6. O-O {[%emt 0:01:05]} e6 {[%emt 0:07:02]} 7. e3 {[%emt 0:01:33]} Rb8 {[%emt 0:07:21]} 8. Qe2 {[%emt 0:04:48]} b5 {[%emt 0:06:28]} 9. b3 {[%emt 0:00:11]} cxb3 {[%emt 0:02:39]} 10. axb3 {[%emt 0:00:10]} Bb7 {[%emt 0:02:31]} 11. Bb2 {[%emt 0:02:27]} Nb4 {[%emt 0:06:50]} 12. Rc1 {[%emt 0:10:08]} Be7 {[%emt 0:09:49]} *

[Event "SVK ECo-C Extraliga 2018-19"]
[Site "Slovakia"]
[Date "2019.03.09"]
[Round "7.7"]
[White "Zpevak, Pavel"]
[Black "Meszaros, Michal"]
[Result "1/2-1/2"]
[ECO "D23"]
[WhiteElo "2340"]
[BlackElo "2358"]
[Annotator "ChessBase"]
[PlyCount "64"]
[EventDate "2018.11.10"]
[EventType "team-tourn"]
[EventCountry "SVK"]
[SourceTitle "playchess.com"]
[Source "ChessBase"]
[SourceQuality "1"]
[WhiteTeam "Dubnica"]
[BlackTeam "Streda"]
[TimeControl "40/5400+30:1800+30"]

1. d4 {[%emt 0:00:00]} d5 {[%emt 0:00:00]} 2. c4 {[%emt 0:00:03]} dxc4 {[%emt 0:00:00]} 3. Nf3 {[%emt 0:00:16]} Nf6 {[%emt 0:00:01]} 4. g3 {[%emt 0:04:23]} a6 {[%emt 0:01:43]} 5. Bg2 {[%emt 0:01:07]} Nc6 {[%emt 0:04:27]} 6. O-O {[%emt 0:01:05]} e6 {[%emt 0:07:02]} 7. e3 {[%emt 0:01:33]} Rb8 {[%emt 0:07:21]} 8. Qe2 {[%emt 0:04:48]} b5 {[%emt 0:06:28]} 9. b3 {[%emt 0:00:11]} cxb3 {[%emt 0:02:39]} 10. axb3 {[%emt 0:00:10]} Bb7 {[%emt 0:02:31]} 11. Bb2 {[%emt 0:02:27]} Nb4 {[%emt 0:06:50]} 12. Rc1 {[%emt 0:10:08]} Be7 {[%emt 0:09:49]} 13. Nbd2 {[%emt 0:04:06]} O-O {[%emt 0:02:53]} 14. Ne5 {[%emt 0:10:21]} Bxg2 {[%emt 0:08:34]} 15. Kxg2 {[%emt 0:00:29]} Rb6 {[%emt 0:04:29]} 16. Ba3 {[%emt 0:13:18]} Nd7 {[%emt 0:14:41]} 17. Ndf3 {[%emt 0:11:44]} Nxe5 {[%emt 0:02:40]} 18. Nxe5 {[%emt 0:00:21]} f6 {[%emt 0:09:49]} 19. Bxb4 {[%emt 0:06:54]} Bxb4 {[%emt 0:00:03]} 20. Nc6 {[%emt 0:04:42]} Qa8 {[%emt 0:00:17]} 21. Qf3 {[%emt 0:06:19]} Bd6 {[%emt 0:00:21]} 22. Rc2 {[%emt 0:00:29]} Qe8 {[%emt 0:01:15]} 23. Na5 {[%emt 0:03:57]} e5 {[%emt 0:01:28]} 24. Nb7 {[%emt 0:05:11]} e4 {[%emt 0:00:36]} 25. Qf5 {[%emt 0:00:12]} g6 {[%emt 0:05:26]} 26. Qd5+ {[%emt 0:00:14]} Kh8 {[%emt 0:00:33]} 27. Nxd6 {[%emt 0:00:34]} Rxd6 {[%emt 0:00:45]} 28. Qb7 {[%emt 0:00:12]} Qc8 {[%emt 0:00:46]} 29. Qxc7 {[%emt 0:02:48]} Qxc7 {[%emt 0:00:13]} 30. Rxc7 {[%emt 0:00:04]} f5 {[%emt 0:00:20]} 31. Rac1 {[%emt 0:00:53]} Kg8 {[%emt 0:00:50]} 32. b4 {[%emt 0:02:47]} Rf7 {[%emt 0:00:24]} 1/2-1/2

[Event "SVK ECo-C Extraliga 2018-19"]
[Site "Slovakia"]
[Date "2019.03.09"]
[Round "7.7"]
[White "Haring, Viktor"]
[Black "Pallag, Gergely"]
[Result "1-0"]
[ECO "C05"]
[WhiteElo "2278"]
[BlackElo "2005"]
[Annotator "NA"]
[PlyCount "47"]
[EventDate "2018.11.10"]
[EventType "team-tourn"]
[EventCountry "SVK"]
[SourceTitle "playchess.com"]
[Source "ChessBase"]
[SourceQuality "1"]
[WhiteTeam "Liptovska"]
[BlackTeam "Komarno"]
[TimeControl "40/5400+30:1800+30"]

1. e4 {[%emt 0:00:00]} e6 {[%emt 0:00:00]} 2. d4 {[%emt 0:00:09]} d5 {[%emt 0:00:00]} 3. Nd2 {[%emt 0:00:09]} Nf6 {[%emt 0:00:00]} 4. e5 {[%emt 0:00:56]} Nfd7 {[%emt 0:00:00]} 5. Bd3 {[%emt 0:00:54]} c5 {[%emt 0:00:09]} 6. c3 {[%emt 0:00:33]} Nc6 {[%emt 0:00:09]} 7. Ne2 {[%emt 0:01:20]} Qb6 {[%emt 0:00:34]} 8. O-O {[%emt 0:05:28]} cxd4 {[%emt 0:03:22]} 9. cxd4 {[%emt 0:00:15]} Nxd4 {[%emt 0:00:58]} 10. Nxd4 {[%emt 0:00:10]} Qxd4 {[%emt 0:00:08]} 11. Nf3 {[%emt 0:00:12]} Qb6 {[%emt 0:05:00]} 12. Qc2 {[%emt 0:01:26]} f5 {[%emt 0:45:02] [#]} 13. exf6 $16 {[%emt 0:08:04]} Nxf6 {[%emt 0:06:57]} 14. Be3 {[%emt 0:15:51]} Qd6 {[%emt 0:12:58]} 15. Rac1 {[%emt 0:17:47]} e5 {[%emt 0:14:16]} 16. Qxc8+ {[%emt 0:23:40]} Rxc8 {[%emt 0:00:31]} 17. Rxc8+ {[%emt 0:00:10]} Kf7 {[%emt 0:02:20]} 18. Ng5+ {[%emt 0:00:13]} Kg8 {[%emt 0:00:44]} 19. Rfc1 {[%emt 0:06:33]} d4 {[%emt 0:05:36]} 20. Ne4 {[%emt 0:04:20]} Qd7 {[%emt 0:00:44]} 21. R1c7 {[%emt 0:01:28]} Qxc7 {[%emt 0:00:30]} 22. Rxc7 {[%emt 0:00:17]} h6 {[%emt 0:00:29]} 23. Nxf6+ {[%emt 0:00:09]} gxf6 {[%emt 0:00:05]} 24. Bc4# 1-0

[Event "SVK ECo-C Extraliga 2018-19"]
[Site "Slovakia"]
[Date "2019.03.09"]
[Round "7.7"]
[White "Banas, Kamil"]
[Black "Sepesi, Samuel"]
[Result "1-0"]
[ECO "B36"]
[WhiteElo "2248"]
[BlackElo "2189"]
[Annotator "NA"]
[PlyCount "79"]
[EventDate "2018.11.10"]
[EventType "team-tourn"]
[EventCountry "SVK"]
[SourceTitle "playchess.com"]
[Source "ChessBase"]
[SourceQuality "1"]
[WhiteTeam "Modra"]
[BlackTeam "Snina"]
[TimeControl "40/5400+30:1800+30"]

1. e4 {[%emt 0:00:00]} c5 {[%emt 0:00:00]} 2. Nf3 {[%emt 0:00:00]} Nc6 {[%emt 0:00:00]} 3. d4 {[%emt 0:00:00]} cxd4 {[%emt 0:00:08]} 4. Nxd4 {[%emt 0:00:00]} g6 {[%emt 0:01:42]} 5. c4 {[%emt 0:00:10]} Nf6 {[%emt 0:01:07]} 6. Nc3 {[%emt 0:00:02]} d6 {[%emt 0:00:20]} 7. Be2 {[%emt 0:00:42]} Nxd4 {[%emt 0:00:06]} 8. Qxd4 {[%emt 0:00:03]} Bg7 {[%emt 0:00:09]} 9. Be3 {[%emt 0:00:56]} O-O {[%emt 0:00:08]} 10. Qd2 {[%emt 0:00:16]} a5 {[%emt 0:00:22]} 11. Rb1 {[%emt 0:04:21]} Bd7 {[%emt 0:08:58]} 12. b3 {[%emt 0:01:35]} Bc6 {[%emt 0:00:49]} 13. f3 {[%emt 0:00:21]} Nd7 {[%emt 0:00:15]} 14. O-O {[%emt 0:01:01]} Nc5 {[%emt 0:00:06]} 15. Rfc1 {[%emt 0:02:22]} Qb6 {[%emt 0:01:16]} 16. a3 {[%emt 0:17:49]} Nxb3 {[%emt 0:48:43]} 17. Bxb6 {[%emt 0:03:03]} Nxd2 {[%emt 0:00:03]} 18. Rb2 {[%emt 0:00:20]} Nxe4 {[%emt 0:07:27]} 19. fxe4 {[%emt 0:00:09]} Bxe4 {[%emt 0:00:11]} 20. Rb3 {[%emt 0:03:21]} Bc6 {[%emt 0:10:01]} 21. Nd5 {[%emt 0:04:45]} e6 {[%emt 0:01:20]} 22. Ne7+ {[%emt 0:01:57]} Kh8 {[%emt 0:00:05]} 23. Nxc6 {[%emt 0:00:16]} bxc6 {[%emt 0:00:17]} 24. Rd1 {[%emt 0:03:33]} d5 {[%emt 0:06:42]} 25. Bc7 {[%emt 0:02:47]} Ra7 {[%emt 0:04:13]} 26. Bd6 {[%emt 0:00:58]} Rd8 {[%emt 0:01:10]} 27. c5 {[%emt 0:00:38]} e5 {[%emt 0:01:09]} 28. Rb6 {[%emt 0:02:36]} e4 {[%emt 0:01:08]} 29. Rxc6 {[%emt 0:07:14]} d4 {[%emt 0:00:24]} 30. Bb5 {[%emt 0:01:29]} d3 {[%emt 0:04:00]} 31. Bf4 {[%emt 0:05:27]} Bd4+ {[%emt 0:00:39]} 32. Kf1 {[%emt 0:00:06]} Rb7 {[%emt 0:00:37]} 33. a4 {[%emt 0:01:08]} Kg7 {[%emt 0:01:22]} 34. Rd6 {[%emt 0:01:19]} Rxd6 {[%emt 0:01:09]} 35. Bxd6 {[%emt 0:00:10]} Ra7 {[%emt 0:00:36]} 36. Rc1 {[%emt 0:05:20]} d2 {[%emt 0:00:43]} 37. Rd1 {[%emt 0:00:20]} e3 {[%emt 0:00:04]} 38. Ke2 {[%emt 0:00:19]} Kf6 {[%emt 0:00:51]} 39. Kd3 {[%emt 0:00:25]} Rb7 {[%emt 0:00:38]} 40. c6 {[%emt 0:01:00]} 1-0

[Event "SVK ECo-C Extraliga 2018-19"]
[Site "Slovakia"]
[Date "2019.03.09"]
[Round "7.7"]
[White "Marian, IM Kantorik"]
[Black "Peter, IM Petran"]
[Result "0-1"]
[ECO "A40"]
[WhiteElo "2206"]
[BlackElo "2244"]
[Annotator "NA"]
[PlyCount "100"]
[EventDate "2018.11.10"]
[EventType "team-tourn"]
[EventCountry "SVK"]
[SourceTitle "playchess.com"]
[Source "ChessBase"]
[SourceQuality "1"]
[WhiteTeam "1"]
[BlackTeam "2"]
[TimeControl "40/5400+30:1800+30"]

1. d4 {[%emt 0:00:00]} g6 {[%emt 0:00:00]} 2. g3 {[%emt 0:00:00]} Bg7 {[%emt 0:00:00]} 3. Bg2 {[%emt 0:00:00]} c5 {[%emt 0:00:25]} 4. d5 {[%emt 0:00:19]} d6 {[%emt 0:02:32]} 5. c4 {[%emt 0:00:54]} f5 {[%emt 0:01:09]} 6. Nh3 {[%emt 0:00:37]} Na6 {[%emt 0:00:50]} 7. Nf4 {[%emt 0:00:21]} Nc7 {[%emt 0:00:13]} 8. h4 {[%emt 0:02:48]} Nh6 {[%emt 0:04:49]} 9. h5 {[%emt 0:02:46]} g5 {[%emt 0:05:42]} 10. Nh3 {[%emt 0:01:18]} g4 {[%emt 0:00:09]} 11. Nf4 {[%emt 0:00:03]} Nf7 {[%emt 0:01:39]} 12. Qc2 {[%emt 0:02:38]} Rb8 {[%emt 0:03:07]} 13. Nc3 {[%emt 0:07:48]} O-O {[%emt 0:06:11]} 14. h6 {[%emt 0:04:37]} Be5 {[%emt 0:20:44]} 15. Bd2 {[%emt 0:13:00]} b5 {[%emt 0:04:52]} 16. cxb5 {[%emt 0:08:54]} Nxb5 {[%emt 0:00:30]} 17. Nxb5 {[%emt 0:03:43]} Rxb5 {[%emt 0:00:25]} 18. Bc3 {[%emt 0:00:46]} Bxc3+ {[%emt 0:06:19]} 19. Qxc3 {[%emt 0:06:40]} Qa5 {[%emt 0:00:59]} 20. Qxa5 Rxa5 {[%emt 0:00:27]} 21. a3 {[%emt 0:08:01]} Ne5 {[%emt 0:01:52]} 22. O-O-O {[%emt 0:02:10]} Bd7 {[%emt 0:02:20]} 23. Bf1 {[%emt 0:12:22]} Rb8 {[%emt 0:04:42]} 24. e3 {[%emt 0:01:47]} c4 {[%emt 0:09:13]} 25. Rd4 {[%emt 0:04:58]} c3 {[%emt 0:00:44]} 26. Rb4 {[%emt 0:00:23]} Rxb4 {[%emt 0:07:29]} 27. axb4 {[%emt 0:00:05]} Ra1+ {[%emt 0:00:19]} 28. Kc2 {[%emt 0:00:03]} Bb5 {[%emt 0:00:34]} 29. Bg2 {[%emt 0:00:54]} Rxh1 {[%emt 0:02:02]} 30. Bxh1 {[%emt 0:00:07]} cxb2 {[%emt 0:00:06]} 31. Kxb2 {[%emt 0:00:55]} Kf7 {[%emt 0:03:10]} 32. Kc3 {[%emt 0:00:44]} Kf6 {[%emt 0:01:48]} 33. e4 {[%emt 0:01:54]} Nf7 {[%emt 0:01:53]} 34. Kd4 {[%emt 0:00:38]} Nxh6 {[%emt 0:00:40]} 35. Nh5+ {[%emt 0:04:18]} Kg5 {[%emt 0:00:38]} 36. Ng7 {[%emt 0:00:37]} Bd7 {[%emt 0:03:13]} 37. exf5 {[%emt 0:05:49]} Nxf5+ {[%emt 0:01:04]} 38. Nxf5 {[%emt 0:00:30]} Bxf5 {[%emt 0:00:14]} 39. f4+ {[%emt 0:00:53]} gxf3 {[%emt 0:00:24]} 40. Bxf3 {[%emt 0:00:03]} h6 {[%emt 0:00:51]} 41. Be2 {[%emt 0:33:18]} Bg4 {[%emt 0:32:51]} 42. Bf1 {[%emt 0:00:00]} Bd1 {[%emt 0:00:00]} 43. Bh3 {[%emt 0:00:00]} Bc2 {[%emt 0:00:00]} 44. Ke3 {[%emt 0:00:00]} Bf5 {[%emt 0:00:00]} 45. Bg2 {[%emt 0:00:00]} Kg4 {[%emt 0:00:00]} 46. Kf2 {[%emt 0:00:00]} Bc2 {[%emt 0:00:00]} 47. Bf3+ {[%emt 0:00:00]} Kf5 {[%emt 0:00:00]} 48. Kg2 {[%emt 0:00:00]} Ke5 {[%emt 0:00:00]} 49. Kh3 {[%emt 0:00:00]} Bb3 {[%emt 0:00:00]} 50. Kh4 {[%emt 0:00:00]} Bxd5 {[%emt 0:00:00]} 0-1

[Event "SVK ECo-C Extraliga 2018-19"]
[Site "Slovakia"]
[Date "2019.03.09"]
[Round "7.7"]
[White "Spacek, Oliver"]
[Black "Kusiak, Matej"]
[Result "1/2-1/2"]
[ECO "E10"]
[WhiteElo "2184"]
[BlackElo "2253"]
[Annotator "NA"]
[PlyCount "70"]
[EventDate "2018.11.10"]
[EventType "team-tourn"]
[EventCountry "SVK"]
[SourceTitle "playchess.com"]
[Source "ChessBase"]
[SourceQuality "1"]
[WhiteTeam "Osuske"]
[BlackTeam "Prakovce"]
[TimeControl "40/5400+30:1800+30"]

1. d4 {[%emt 0:00:00]} Nf6 {[%emt 0:00:00]} 2. Nf3 {[%emt 0:00:00]} e6 {[%emt 0:00:00]} 3. c4 {[%emt 0:02:51]} c5 {[%emt 0:00:28]} 4. d5 {[%emt 0:02:51]} b5 {[%emt 0:12:20]} 5. dxe6 {[%emt 0:16:14] LiveBook: 643 Games} fxe6 {[%emt 0:00:09]} 6. cxb5 {[%emt 0:04:52]} d5 {[%emt 0:00:08]} 7. Bg5 {[%emt 0:00:31]} Be7 {[%emt 0:01:54]} 8. Nbd2 {[%emt 0:02:24]} ({Better is} 8. a4 $14) 8... O-O {[%emt 0:00:55]} 9. e3 {[%emt 0:02:39]} a6 $11 {[%emt 0:01:36]} 10. bxa6 {[%emt 0:05:15]} Nc6 {[%emt 0:02:38]} 11. a3 {[%emt 0:06:19]} Qb6 {[%emt 0:04:21]} 12. Qc2 {[%emt 0:01:40]} c4 {[%emt 0:01:44]} 13. b3 {[%emt 0:06:32]} cxb3 {[%emt 0:01:47]} 14. Qxb3 {[%emt 0:01:10]} Qxb3 {[%emt 0:01:42]} 15. Nxb3 {[%emt 0:00:09]} Bxa6 {[%emt 0:00:11]} 16. Bxa6 {[%emt 0:01:01]} Rxa6 {[%emt 0:00:07]} 17. O-O {[%emt 0:00:06]} Rfa8 {[%emt 0:15:25]} 18. Nbd4 {[%emt 0:04:06]} Nxd4 {[%emt 0:00:00]} 19. Nxd4 {[%emt 0:00:46]} Bxa3 {[%emt 0:00:00]} 20. f3 {[%emt 0:12:06]} Bc5 {[%emt 0:00:00]} 21. Rxa6 {[%emt 0:13:25]} Rxa6 {[%emt 0:00:25]} 22. Rc1 {[%emt 0:02:27]} Bxd4 {[%emt 0:03:44]} 23. exd4 {[%emt 0:00:12]} Ra4 {[%emt 0:00:11]} 24. Rc8+ {[%emt 0:01:40]} Kf7 {[%emt 0:00:10]} 25. Rc7+ {[%emt 0:00:03]} Kg6 {[%emt 0:00:09]} 26. Be3 {[%emt 0:00:07]} Ng8 {[%emt 0:08:42]} 27. h4 {[%emt 0:01:36]} h6 {[%emt 0:03:06]} 28. g4 {[%emt 0:02:58]} Rc4 {[%emt 0:04:20]} 29. Ra7 {[%emt 0:00:37]} h5 {[%emt 0:05:37]} 30. gxh5+ {[%emt 0:03:27]} Kh7 {[%emt 0:01:38]} 31. Ra6 {[%emt 0:06:30]} Ne7 {[%emt 0:02:12]} 32. Rxe6 {[%emt 0:00:04]} Nf5 {[%emt 0:00:04]} 33. Bf2 {[%emt 0:01:08]} Nxd4 {[%emt 0:00:38]} 34. Bxd4 {[%emt 0:00:19]} Rxd4 {[%emt 0:00:10]} 35. Rd6 {[%emt 0:00:07]} Rxh4 {[%emt 0:02:05]} 1/2-1/2

[Event "SVK ECo-C Extraliga 2018-19"]
[Site "Slovakia"]
[Date "2019.03.09"]
[Round "7.7"]
[White "Turcan, Martin"]
[Black "Gazik, Igor"]
[Result "0-1"]
[ECO "A41"]
[WhiteElo "1921"]
[BlackElo "2237"]
[Annotator "NA"]
[PlyCount "76"]
[EventDate "2018.11.10"]
[EventType "team-tourn"]
[EventCountry "SVK"]
[SourceTitle "playchess.com"]
[Source "ChessBase"]
[SourceQuality "1"]
[WhiteTeam "Zilina"]
[BlackTeam "Podhajska"]
[TimeControl "40/5400+30:1800+30"]

1. d4 {[%emt 0:00:00]} d6 {[%emt 0:01:13]} 2. c4 {[%emt 0:00:35]} e5 {[%emt 0:01:49]} 3. dxe5 {[%emt 0:05:49]} dxe5 {[%emt 0:00:05]} 4. Qxd8+ {[%emt 0:00:51]} Kxd8 {[%emt 0:00:06]} 5. Nc3 {[%emt 0:02:15]} Be6 {[%emt 0:00:44]} 6. e3 {[%emt 0:11:52]} c6 {[%emt 0:05:44]} 7. Nf3 {[%emt 0:01:50]} f6 {[%emt 0:00:05]} 8. Bd2 {[%emt 0:11:58]} Nd7 {[%emt 0:02:33]} 9. Ne4 {[%emt 0:06:31]} Ne7 {[%emt 0:31:37]} 10. Rd1 {[%emt 0:03:25]} Nc8 {[%emt 0:06:26]} 11. Bc3 {[%emt 0:05:15]} Kc7 {[%emt 0:02:07]} 12. b3 {[%emt 0:05:44]} a5 {[%emt 0:01:15]} 13. a4 {[%emt 0:02:03]} Nd6 {[%emt 0:13:58]} 14. Nfd2 {[%emt 0:03:09]} Nf7 {[%emt 0:03:33]} 15. Bd3 {[%emt 0:11:13]} f5 {[%emt 0:01:54]} 16. Ng3 {[%emt 0:00:25]} g6 {[%emt 0:00:17]} 17. O-O {[%emt 0:01:18]} b6 {[%emt 0:06:03]} 18. Bc2 {[%emt 0:00:53]} h5 {[%emt 0:01:00]} 19. Ne2 {[%emt 0:01:58]} Rg8 {[%emt 0:09:36]} 20. Kh1 {[%emt 0:02:21]} Bc5 {[%emt 0:00:35]} 21. e4 {[%emt 0:02:48]} f4 {[%emt 0:00:50]} 22. Nc1 {[%emt 0:02:42]} g5 {[%emt 0:00:58]} 23. Nd3 {[%emt 0:00:52]} Bd6 {[%emt 0:00:05]} 24. Nf3 {[%emt 0:08:29]} Rg7 {[%emt 0:01:56]} 25. Rfe1 {[%emt 0:01:46]} Rh7 {[%emt 0:00:34]} 26. Rd2 {[%emt 0:02:13]} h4 {[%emt 0:00:21]} 27. Red1 {[%emt 0:00:51]} h3 {[%emt 0:04:12]} 28. g3 {[%emt 0:01:33]} Bg4 {[%emt 0:00:12]} 29. Nde1 {[%emt 0:00:19]} Re8 {[%emt 0:00:57]} 30. Rd3 {[%emt 0:01:07]} Bc5 {[%emt 0:00:09]} 31. R1d2 {[%emt 0:00:21]} Rh6 {[%emt 0:00:43]} 32. Kg1 {[%emt 0:01:00]} Nd6 {[%emt 0:02:05]} 33. Rxd6 {[%emt 0:00:46]} Rxd6 {[%emt 0:00:49]} 34. Rxd6 {[%emt 0:00:57]} Kxd6 {[%emt 0:00:13]} 35. Nxg5 {[%emt 0:00:54]} fxg3 {[%emt 0:01:15]} 36. hxg3 {[%emt 0:00:39]} Rf8 {[%emt 0:00:03]} 37. Nd3 {[%emt 0:00:38]} Bxf2+ {[%emt 0:00:15]} 38. Nxf2 {[%emt 0:00:23]} h2+ {[%emt 0:00:05]} 0-1

[Event "SVK ECo-C Extraliga 2018-19"]
[Site "Slovakia"]
[Date "2019.03.09"]
[Round "7.8"]
[White "Sebastian Lukas, FM Kostolansky"]
[Black "Magat, Jozef"]
[Result "1-0"]
[ECO "B00"]
[WhiteElo "2308"]
[BlackElo "2112"]
[Annotator "NA"]
[PlyCount "139"]
[EventDate "2018.11.10"]
[EventType "team-tourn"]
[EventCountry "SVK"]
[SourceTitle "playchess.com"]
[Source "ChessBase"]
[SourceQuality "1"]
[WhiteTeam "2"]
[BlackTeam "1"]
[TimeControl "40/5400+30:1800+30"]

1. e4 {[%emt 0:00:00]} Nc6 {[%emt 0:00:00]} 2. Nf3 {[%emt 0:01:21]} g6 {[%emt 0:01:53]} 3. d4 {[%emt 0:01:01]} Bg7 {[%emt 0:01:04]} 4. d5 {[%emt 0:06:27]} Ne5 {[%emt 0:00:57]} 5. Nxe5 {[%emt 0:02:00]} Bxe5 {[%emt 0:00:13]} 6. Be2 {[%emt 0:01:29]} d6 {[%emt 0:03:18]} 7. O-O {[%emt 0:00:46]} c6 {[%emt 0:01:14]} 8. Nd2 {[%emt 0:08:55]} Bg7 {[%emt 0:04:26]} 9. dxc6 bxc6 {[%emt 0:00:25]} 10. Bf3 {[%emt 0:22:34]} Rb8 {[%emt 0:03:31]} 11. Re1 {[%emt 0:04:05]} Qc7 {[%emt 0:02:48]} 12. Nc4 {[%emt 0:05:05]} Be6 {[%emt 0:04:15]} 13. Qd3 {[%emt 0:02:53]} Rb4 {[%emt 0:17:58]} 14. Na3 {[%emt 0:07:36]} Nf6 {[%emt 0:07:19]} 15. c3 {[%emt 0:12:28]} Rb7 {[%emt 0:04:39]} 16. Bf4 {[%emt 0:02:48]} Nd7 {[%emt 0:03:45]} 17. Qd2 {[%emt 0:00:08]} O-O {[%emt 0:00:37]} 18. Rad1 {[%emt 0:07:04]} Rfb8 {[%emt 0:02:51]} 19. b3 {[%emt 0:02:48]} Qa5 {[%emt 0:02:13]} 20. Nb1 {[%emt 0:00:06]} Ne5 {[%emt 0:01:15]} 21. Be2 {[%emt 0:00:30]} c5 {[%emt 0:03:22]} 22. Be3 {[%emt 0:06:33]} Qc7 {[%emt 0:02:37]} 23. c4 {[%emt 0:02:33]} Nc6 {[%emt 0:03:22]} 24. Nc3 {[%emt 0:01:03]} Qa5 {[%emt 0:01:47]} 25. Rc1 {[%emt 0:01:06]} Nb4 {[%emt 0:02:06]} 26. Bd1 {[%emt 0:00:14]} Qa3 {[%emt 0:02:41]} 27. Re2 {[%emt 0:00:33]} Nc6 {[%emt 0:02:13]} 28. f4 {[%emt 0:01:12]} Bg4 {[%emt 0:02:22]} 29. Rf2 {[%emt 0:00:08]} Bxd1 {[%emt 0:02:27]} 30. Qxd1 {[%emt 0:00:46]} Qa5 {[%emt 0:03:18]} 31. Qd2 {[%emt 0:00:42]} Nd4 {[%emt 0:04:30]} 32. f5 {[%emt 0:00:13]} Nc6 {[%emt 0:04:17]} 33. fxg6 hxg6 {[%emt 0:00:20]} 34. Qd5 {[%emt 0:01:11]} Nd8 {[%emt 0:01:43]} 35. Na4 {[%emt 0:00:40]} Qc7 {[%emt 0:01:20]} 36. Rcf1 {[%emt 0:00:31]} e6 {[%emt 0:01:35]} 37. Qd1 {[%emt 0:00:05]} Qc6 {[%emt 0:00:23]} 38. Qg4 {[%emt 0:00:23]} Qe8 {[%emt 0:00:38]} 39. h4 {[%emt 0:00:54]} f5 {[%emt 0:01:10]} 40. Qd1 {[%emt 0:00:21]} Nf7 {[%emt 0:01:50]} 41. Rd2 {[%emt 0:11:20]} Rd8 {[%emt 0:08:56]} 42. Rf3 {[%emt 0:07:39]} Rbd7 {[%emt 0:05:25]} 43. Rg3 {[%emt 0:02:48]} Kh7 {[%emt 0:05:55]} 44. Qb1 {[%emt 0:05:46]} Be5 {[%emt 0:03:06]} 45. Rf3 {[%emt 0:00:24]} Nh6 {[%emt 0:01:00]} 46. h5 {[%emt 0:02:57]} gxh5 {[%emt 0:02:02]} 47. Bxh6 {[%emt 0:01:15]} Kxh6 {[%emt 0:00:08]} 48. exf5 {[%emt 0:00:05]} exf5 {[%emt 0:01:30]} 49. Qxf5 {[%emt 0:00:59]} Qg6 {[%emt 0:00:30]} 50. Nxc5 {[%emt 0:01:15]} Qxf5 51. Rxf5 {[%emt 0:00:06]} dxc5 {[%emt 0:05:26]} 52. Rxd7 {[%emt 0:00:07]} Bd4+ 53. Rxd4 {[%emt 0:00:07]} cxd4 {[%emt 0:00:25]} 54. Kf2 {[%emt 0:00:55]} d3 {[%emt 0:00:54]} 55. Rd5 {[%emt 0:00:49]} Rf8+ {[%emt 0:00:26]} 56. Ke3 {[%emt 0:01:02]} Rg8 {[%emt 0:00:21]} 57. Rd6+ {[%emt 0:00:06]} Kg5 {[%emt 0:00:54]} 58. Rxd3 {[%emt 0:00:23]} Kh4 {[%emt 0:01:14]} 59. Rd2 {[%emt 0:01:17]} Kg3 {[%emt 0:00:18]} 60. c5 {[%emt 0:00:28]} Re8+ {[%emt 0:01:03]} 61. Kd3 {[%emt 0:00:23]} Rd8+ {[%emt 0:01:13]} 62. Kc3 {[%emt 0:00:45]} Rc8 {[%emt 0:00:22]} 63. Kc4 {[%emt 0:00:26]} h4 {[%emt 0:00:11]} 64. b4 {[%emt 0:00:44]} a6 {[%emt 0:00:20]} 65. a4 {[%emt 0:00:10]} Rf8 {[%emt 0:00:28]} 66. c6 {[%emt 0:00:24]} a5 {[%emt 0:00:56]} 67. b5 {[%emt 0:00:23]} Rf4+ {[%emt 0:00:11]} 68. Kc5 {[%emt 0:00:18]} Rxa4 {[%emt 0:00:28]} 69. c7 {[%emt 0:00:06]} Ra1 {[%emt 0:00:07]} 70. Rc2 {[%emt 0:00:04]} 1-0